Cogmind - Beta 9.6 @@@ ROGUE MODE // 2020.07.06 @ 23:28:34 Player: Mr.Manatee Result: Self-destructed Performance ------------- Evolutions (4) 2000 Regions Visited (7) 1400 Robots Destroyed (98) 490 Value Destroyed (4120) 4120 Prototype IDs (13) 260 Alien Tech Used (0) 0 Bonus (1018) 1018 TOTAL SCORE: 9288 Bonus ------- High Alert Combat Kills 241 Follower Combat Kills 77 Entered Garrisons 200 Used RIF Installer 500 Cogmind --------- Core Integrity 824/850 Matter 7/300 Energy 296/500 System Corruption 0% Temperature Cool (138) Movement Treading (200) Ox2 Location -6/Factory Parts ------- > --- POWER (2) -------- Improved Deuterium Engine Fission Core > --- PROPULSION (4) --- Light Treads > --- UTILITY (6) ------ Medium Storage Unit Long-range Sensor Array Advanced Signal Interpreter Thermal Shield Improved Shield Generator > --- WEAPON (3) ------- Magnetic Acceleration Cannon Magnetic Acceleration Cannon Magnetic Acceleration Cannon > --- INVENTORY (8) ---- Heavy Ion Engine Improved Cooling System Coolant Injector High-capacity Matter Pod (0) EM Shield Relay Coupler [Hunter] (19) Proton Cannon Magnetic Acceleration Cannon Peak State ------------ > --- POWER ------------ Improved Deuterium Engine Light Angular Momentum Engine > --- PROPULSION ------- Carbon-fiber Leg Carbon-fiber Leg Titanium Leg Improved Titanium Leg > --- UTILITY ---------- Cryofiber Web Medium Storage Unit Long-range Sensor Array Advanced Signal Interpreter Improved Medium Armor Plating > --- WEAPON ----------- Cooled Pulse Rifle Cooled Particle Cannon > --- INVENTORY -------- Heavy Ion Engine Coolant Injector Advanced Targeting Computer Recoil Stabilizer Hardened Medium Armor Plating Improved Shield Generator Gatling Laser Heavy Ion Cannon [Rating: 49] Favorites ----------- Power Improved Deuterium Engine Engine Improved Deuterium Engine Power Core Fission Core Propulsion Aluminum Leg Treads Light Treads Leg Aluminum Leg Utility Medium Storage Unit Device Cryofiber Web Storage Medium Storage Unit Processor Advanced Signal Interpreter Hackware Hacking Suite Protection Layered Medium Armor Plating Weapon Magnetic Acceleration Cannon Energy Gun Heavy EM Pulse Gun Energy Cannon Heavy Ion Cannon Ballistic Gun Light Assault Rifle Ballistic Cannon Magnetic Acceleration Cannon Impact Weapon Mace Build | -11 -10 -9 -9 -8 -7 -7 -6 ------- Run | Scr Mat Mat Min Mat Fac Gar Fac Slots Evolved 8 | . . 2 . 2 2 . 2 Power 1 | . . . . . 1 . . Propulsion 2 | . . 1 . 1 . . . Utility 4 | . . 1 . 1 1 . 1 Weapon 1 | . . . . . . . 1 Parts Attached 137 | 6 11 25 1 26 18 43 7 Power 18 | 1 1 4 . 3 2 6 1 Engine 15 | 1 1 4 . 3 1 5 . Core 3 | . . . . . 1 1 1 Reactor . | . . . . . . . . Propulsion 26 | 2 3 8 . 8 1 4 . Treads 4 | . . . . . . 4 . Leg 22 | 2 3 8 . 8 1 . . Wheel . | . . . . . . . . Hover . | . . . . . . . . Flight . | . . . . . . . . Utility 52 | 1 3 6 1 7 6 23 5 Device 29 | . 1 . . 6 1 17 4 Storage 5 | 1 2 . . . 1 . 1 Processor 4 | . . 2 1 1 . . . Hackware 1 | . . . . . 1 . . Protection 13 | . . 4 . . 3 6 . Artifact . | . . . . . . . . Weapon 41 | 2 4 7 . 8 9 10 1 Energy Gun 12 | 2 3 1 . . 5 1 . Energy Cannon 19 | . . 4 . 7 3 5 . Ballistic Gun 2 | . 1 1 . . . . . Ballistic Cannon 6 | . . . . 1 . 4 1 Launcher . | . . . . . . . . Special Weapon . | . . . . . . . . Impact Weapon 2 | . . 1 . . 1 . . Slashing Weapon . | . . . . . . . . Piercing Weapon . | . . . . . . . . Special Melee Weapon . | . . . . . . . . Unidentified Prototypes 6 | . . 4 . . 2 . . Parts Lost 22 | . 1 6 . 5 1 9 . Power 2 | . . 1 . . . 1 . Propulsion 9 | . . 1 . 1 1 6 . Utility 3 | . . 1 . 1 . 1 . Weapon 8 | . 1 3 . 3 . 1 . Highest Loss Streak 4 | . 1 2 . 1 1 4 . Average Slot Usage (%) 92 | . 86 90 100 98 98 93 79 Engine 11 | . 14 10 11 9 13 14 11 Treads 4 | . . . . . . 19 6 Leg 21 | . 28 32 33 34 29 5 . Device 12 | . 1 1 . 17 15 7 25 Storage 8 | . 14 11 11 9 7 7 6 Processor 6 | . . . 19 9 7 7 6 Protection 5 | . . 13 2 . 6 14 . Energy Gun 4 | . 24 9 . . 9 2 . Energy Cannon 7 | . . 7 11 16 2 7 . Ballistic Cannon 4 | . . . . 1 . 4 19 Impact Weapon 1 | . . 3 11 . 1 . . Naked Turns . | . . . . . . . . Heaviest Build 64 | 12 22 33 27 33 50 64 61 Greatest Support 80 | 20 20 30 30 62 67 80 20 Greatest Overweight (x) 3 | . 1 1 . . . 3 3 Average Overweight (x) . | . . . . . . . 2 Largest Inventory Capacity 12 | 6 12 8 8 8 8 8 8 Average Capacity 7 | 5 7 8 8 8 8 8 8 Most Carried 8 | 4 8 8 8 8 8 8 8 Average Carried 7 | 1 5 6 7 7 7 7 6 Final Capacity 8 | 6 8 8 8 8 8 8 8 Final Carried 8 | 4 8 8 8 8 8 8 8 Class Distribution -------------------- 51% | Mutant 30% | Scavenger-Mutant 17% | Tank Dominant Class ---------------- Mutant | -10/Materials Mutant | -9/Materials Mutant | -9/Mines Mutant | -8/Materials Scavenger-Mutant | -7/Factory Scavenger-Mutant | -7/Garrison Tank | -6/Factory Resources | -11 -10 -9 -9 -8 -7 -7 -6 ----------- Run | Scr Mat Mat Min Mat Fac Gar Fac Matter Collected 1903 | 207 44 340 10 320 138 819 25 Remotely . | . . . . . . . . Salvage Created 3964 | . 259 954 137 1367 177 1005 65 Parts 205 | . 18 64 7 67 10 36 3 Haulers Intercepted 5 | . . 2 . 3 . . . Recyclers Shooed 3 | . 1 1 1 . . . . Parts Field Recycled . | . . . . . . . . Retrieved Matter . | . . . . . . . . Parts Self-Destructed . | . . . . . . . . Prevented . | . . . . . . . . Kills | -11 -10 -9 -9 -8 -7 -7 -6 ------- Run | Scr Mat Mat Min Mat Fac Gar Fac Combat Hostiles Destroyed 85 | . 5 23 3 28 3 21 2 Melee 2 | . . 2 . . . . . Guns 29 | . 5 16 . . 3 5 . Cannons 52 | . . 5 2 27 . 16 2 AOE 1 | . . . . 1 . . . Classes Destroyed 10 | . 2 4 . 1 1 1 1 Worker 1 | . . . . . . . 1 Hauler 5 | . . 2 . 3 . . . Recycler 2 | . . 1 1 . . . . Mechanic 1 | . . . . 1 . . . Watcher 4 | . 1 2 . . 1 . . Swarmer 25 | . . 13 3 6 . 3 . Grunt 32 | . 5 5 . 16 . 6 . Brawler 1 | . . . . . . 1 . Sentry 23 | . . 5 . 6 1 10 1 Programmer 4 | . . . . . 2 1 1 Best Kill Streak 5 | . 5 5 3 4 1 5 1 Combat Bots Only 5 | . 5 5 3 4 1 5 1 Max Kills in Single Turn 2 | . 2 1 1 1 1 1 1 Gunslinging 1 | . 1 . . . . . . Exploded 1 | . . . . 1 . . . Melee 1 | . . 1 . . . . . Uniques/NPCs Destroyed . | . . . . . . . . Combat | -11 -10 -9 -9 -8 -7 -7 -6 -------- Run | Scr Mat Mat Min Mat Fac Gar Fac Damage Taken 5681 | . 301 1229 31 1338 193 2294 295 Core 522 | . 44 51 . 195 20 186 26 Absorbed by Shields 287 | . . . . . . 172 115 Core Remaining (%) 80 | 100 82 . 87 64 . 70 . Volleys Fired 299 | . 16 80 6 99 9 82 7 Largest 3 | . 2 2 1 2 2 2 3 Hottest 160 | . 80 113 68 150 160 150 159 Shots Fired 538 | . 31 114 6 186 18 162 21 Gun 169 | . 31 80 . . 16 42 . Cannon 369 | . . 34 6 186 2 120 21 Launcher . | . . . . . . . . Special . | . . . . . . . . Kinetic 106 | . 6 . . 22 . 57 21 Thermal 315 | . 11 34 6 164 14 86 . Explosive . | . . . . . . . . Electromagnetic 117 | . 14 80 . . 4 19 . Robot Hit Streak 17 | . 7 15 2 14 6 17 5 Robot Miss Streak 5 | . 3 5 1 3 3 5 4 Penetration Max . | . . . . . . . . Secondary Targets 3 | . 3 . . . . . . Max Gunslinging Chain 1 | . 1 . . . . . . Shots Hit Robots 346 | . 21 77 4 118 17 100 9 Core Hits 151 | . 11 34 3 46 10 42 5 Critical Hits 2 | . . 2 . . . . . Critical Kills . | . . . . . . . . Critical Parts Destroyed 2 | . . 2 . . . . . Melee Attacks 15 | . . 13 1 . 1 . . Impact 15 | . . 13 1 . 1 . . Slashing . | . . . . . . . . Piercing . | . . . . . . . . Sneak Attacks 2 | . . . 1 . 1 . . Combat Hostiles 1 | . . . 1 . . . . Follow-up Attacks . | . . . . . . . . Damage Inflicted 8447 | . 297 1247 171 3233 429 2722 348 Guns 2205 | . 297 704 . . 287 917 . Cannons 5632 | . . 347 83 3027 22 1805 348 Explosions 206 | . . . . 206 . . . Melee 404 | . . 196 88 . 120 . . Ramming . | . . . . . . . . Kinetic 1427 | . 31 . . 305 . 743 348 Thermal 5265 | . 83 347 83 2722 251 1779 . Explosive 206 | . . . . 206 . . . Electromagnetic 1145 | . 183 704 . . 58 200 . Impact 404 | . . 196 88 . 120 . . Slashing . | . . . . . . . . Piercing . | . . . . . . . . Highest Corruption 5 | . . . . . 5 5 . Average Corruption 4 | . . . . . 4 5 . Corruption Purged . | . . . . . . . . Effects 51 | . . . . . 7 44 . Message Errors 12 | . . . . . 2 10 . Matter Fused 15 | . . . . . 1 14 . Heat Flow Errors 6 | . . . . . 1 5 . Parts Rejected 1 | . . . . . 1 . . Data Loss (minor) 7 | . . . . . 2 5 . Data Loss (major) 1 | . . . . . . 1 . Misfires 2 | . . . . . . 2 . Targeting Errors 6 | . . . . . . 6 . Weapon Failures 1 | . . . . . . 1 . Overload Shots 8 | . . . . . . 8 . Effects 2 | . . . . . . 2 . Energy Bleed 1 | . . . . . . 1 . Short Circuit 1 | . . . . . . 1 . Overflow Damage 252 | . . . 68 138 . 46 . Projectiles 152 | . . . . 106 . 46 . Explosions 32 | . . . . 32 . . . Melee 68 | . . . 68 . . . . Knockbacks 10 | . . . 1 3 . 5 1 Impact 1 | . . . 1 . . . . Kinetic 9 | . . . . 3 . 5 1 Secondary . | . . . . . . . . Self-Inflicted Damage 104 | . . . . . . 104 . Shots 1 | . . . . . . 1 . Rammed . | . . . . . . . . Targets Rammed . | . . . . . . . . Kicked . | . . . . . . . . Crushed . | . . . . . . . . Highest Temperature 419 | . 257 419 56 218 302 374 290 Average Temperature 118 | . 106 122 22 72 119 132 132 Received Heat Transfer 1654 | . 153 291 . 576 . 540 94 Effects 6 | . . 4 . . . 1 1 Energy Bleed 3 | . . 1 . . . 1 1 Interference 3 | . . 3 . . . . . Siege Activations . | . . . . . . . . Robots Corrupted . | . . . . . . . . Combat Hostiles . | . . . . . . . . Parts Fried 7 | . . 4 1 . . 2 . Impact Corruptions 1 | . . . 1 . . . . Robots Melted . | . . . . . . . . Combat Hostiles . | . . . . . . . . Parts Melted 9 | . . . . 4 1 4 . Heat Transferred 7934 | . 200 629 148 3700 475 2782 . Parts Sabotaged . | . . . . . . . . Parts Stolen . | . . . . . . . . Parts Stripped . | . . . . . . . . Power Chain Reactions . | . . . . . . . . Missiles Intercepted . | . . . . . . . . Alert | -11 -10 -9 -9 -8 -7 -7 -6 ------- Run | Scr Mat Mat Min Mat Fac Gar Fac Peak Influence 1016 | . 182 348 276 437 233 1016 533 Average Influence 295 | . 80 220 172 235 119 627 324 Maximum Alert Level 3 | . . 1 1 2 1 3 2 Low Security (%) 36 | 100 100 25 79 29 72 8 27 Level 1 43 | . . 74 20 68 27 11 46 Level 2 13 | . . . . 1 . 43 26 Level 3 6 | . . . . . . 36 . Level 4 . | . . . . . . . . Level 5 . | . . . . . . . . High Security . | . . . . . . . . Max Security . | . . . . . . . . Squads Dispatched 12 | . 1 . 1 7 2 . 1 Investigation 3 | . 1 . 1 1 . . . Extermination 2 | . . . . . 1 . 1 Reinforcement 2 | . . . . 1 1 . . Assault . | . . . . . . . . Garrison 5 | . . . . 5 . . . Intercept . | . . . . . . . . Construction Impeded . | . . . . . . . . Haulers Reinforced . | . . . . . . . . Stealth | -11 -10 -9 -9 -8 -7 -7 -6 --------- Run | Scr Mat Mat Min Mat Fac Gar Fac Distress Signals 2 | . . 1 . 1 . . . Communications Jammed . | . . . . . . . . Distress Signals . | . . . . . . . . Times Spotted 141 | . 11 40 5 51 4 22 8 Peak Tracking Total 6 | . 5 6 3 6 2 5 6 Tactical Retreats 14 | . . 8 . 6 . . . Traps | -11 -10 -9 -9 -8 -7 -7 -6 ------- Run | Scr Mat Mat Min Mat Fac Gar Fac Traps Triggered 6 | . . 1 . . . 5 . Indirectly . | . . . . . . . . Trap Hack Attempts . | . . . . . . . . Triggered . | . . . . . . . . Disarmed . | . . . . . . . . Reprogrammed . | . . . . . . . . Reused . | . . . . . . . . Traps Extracted . | . . . . . . . . Installed . | . . . . . . . . Triggered . | . . . . . . . . Machines | -11 -10 -9 -9 -8 -7 -7 -6 ---------- Run | Scr Mat Mat Min Mat Fac Gar Fac Machines Disabled 12 | . . 1 . 4 . 6 1 Max in Single Turn 2 | . . 1 . 1 . 2 1 Garrison Relay 3 | . . . . . . 3 . Phase Generator 1 | . . . . . . 1 . Machines Sabotaged . | . . . . . . . . Garrisons Compromised . | . . . . . . . . Overloaded Fab Kills . | . . . . . . . . Fab Network Shutdowns . | . . . . . . . . Hacking | -11 -10 -9 -9 -8 -7 -7 -6 --------- Run | Scr Mat Mat Min Mat Fac Gar Fac Machines Accessed 21 | . 2 7 2 6 3 . 1 Terminals 11 | . 1 3 1 3 2 . 1 Fabricators . | . . . . . . . . Repair Stations 3 | . . 2 . 1 . . . Recycling Units 2 | . 1 . . 1 . . . Scanalyzers 2 | . . 2 . . . . . Garrison Access 2 | . . . . 1 1 . . Total Hacks 76 | . 10 31 3 19 8 . 5 Successful 44 | . 3 24 2 10 4 . 1 Failed 32 | . 7 7 1 9 4 . 4 Catastrophic 4 | . . 1 . 2 1 . . Database Lockouts . | . . . . . . . . Manual 25 | . 6 3 2 7 2 . 5 Terminals 37 | . 5 8 2 10 7 . 5 Fabricators . | . . . . . . . . Repair Stations 15 | . . 10 . 5 . . . Recycling Units 6 | . 5 . . 1 . . . Scanalyzers 13 | . . 13 . . . . . Garrison Access 4 | . . . . 3 1 . . Terminal Hacks 10 | . . 3 2 3 2 . . Record 1 | . . 1 . . . . . Part Schematic 1 | . . . . . 1 . . Robot Analysis 2 | . . 1 . . 1 . . Prototype ID Bank 3 | . . 1 . 2 . . . Open Door 1 | . . . 1 . . . . Branch Access Points 1 | . . . 1 . . . . Alert Level 1 | . . . . 1 . . . Fabricator Hacks . | . . . . . . . . Repair Station Hacks 13 | . . 10 . 3 . . . Scan Component 7 | . . 5 . 2 . . . Repair 6 | . . 5 . 1 . . . Recycling Unit Hacks . | . . . . . . . . Scanalyzer 11 | . . 11 . . . . . Insert Component 6 | . . 6 . . . . . Analyze 5 | . . 5 . . . . . Garrison Access Hacks 1 | . . . . . 1 . . Unlock Access 1 | . . . . . 1 . . Unauthorized Hacks 9 | . 3 . . 4 1 . 1 Terminals 7 | . 2 . . 3 1 . 1 Track 2 | . 1 . . 1 . . . Botnet 5 | . 1 . . 2 1 . 1 Fabricators . | . . . . . . . . Repair Stations . | . . . . . . . . Recycling Units 2 | . 1 . . 1 . . . Tunnel 2 | . 1 . . 1 . . . Scanalyzers . | . . . . . . . . Garrison Access . | . . . . . . . . Data Cores Recovered . | . . . . . . . . Used . | . . . . . . . . Hacking Detections 18 | . 2 7 1 5 2 . 1 Full Trace Events 2 | . . 2 . . . . . Feedback Events . | . . . . . . . . Feedback Blocked . | . . . . . . . . Robot Schematics Acquired . | . . . . . . . . Robots Built . | . . . . . . . . Matter . | . . . . . . . . Time . | . . . . . . . . Total Robot Build Rating . | . . . . . . . . Part Schematics Acquired 5 | . . 4 . . 1 . . Parts Built . | . . . . . . . . Matter . | . . . . . . . . Time . | . . . . . . . . Total Part Build Rating . | . . . . . . . . Parts Repaired 6 | . . 5 . 1 . . . Time 199 | . . 161 . 38 . . . Parts Recycled . | . . . . . . . . Recycled Matter . | . . . . . . . . Retrieved Matter . | . . . . . . . . Retrieved Components . | . . . . . . . . Parts Scanalyzed 5 | . . 5 . . . . . Part Schematics Acquired 4 | . . 4 . . . . . Parts Damaged . | . . . . . . . . Bothacking | -11 -10 -9 -9 -8 -7 -7 -6 ------------ Run | Scr Mat Mat Min Mat Fac Gar Fac Used RIF Installer 1 | . . . . . . 1 . Robots Hacked . | . . . . . . . . Non-combat . | . . . . . . . . Combat . | . . . . . . . . Robot Hacks Applied . | . . . . . . . . Relay Couplers Released 11 | . . . . . . 11 . Machine Destruction 11 | . . . . . . 11 . Robots Rewired . | . . . . . . . . Allies Hacked . | . . . . . . . . Hacks Repelled . | . . . . . . . . Allies | -11 -10 -9 -9 -8 -7 -7 -6 -------- Run | Scr Mat Mat Min Mat Fac Gar Fac Total Allies 3 | . . . 3 . . . . Largest Group 3 | . . . 3 2 . . . Highest-Rated Group 79 | . . . 79 48 . . . Highest-Rated Ally 31 | . . . 31 31 . . . Total Orders . | . . . . . . . . Ally Attacks 15 | . . . 10 5 . . . Total Damage 232 | . . . 148 84 . . . Kills 3 | . . . 3 . . . . Allies Corrupted . | . . . . . . . . Allies Melted . | . . . . . . . . Intel | -11 -10 -9 -9 -8 -7 -7 -6 ------- Run | Scr Mat Mat Min Mat Fac Gar Fac Robot Analysis Total 2 | . . 1 . . 1 . . Derelict Logs Recovered 1 | . . . 1 . . . . Drone Launches . | . . . . . . . . Drone Recoveries . | . . . . . . . . Exploration | -11 -10 -9 -9 -8 -7 -7 -6 ------------- Run | Scr Mat Mat Min Mat Fac Gar Fac Turns Passed 8442 | 52 380 1452 540 1971 983 1577 1487 Spaces Moved 4492 | 37 245 725 397 1201 682 731 474 Core 7 | 7 . . . . . . . Treads 1048 | . . . . . . 574 474 Legs 3437 | 30 245 725 397 1201 682 157 . Wheels . | . . . . . . . . Hover . | . . . . . . . . Flight . | . . . . . . . . Fastest Speed 50 | 50 120 120 120 120 122 125 200 Average Speed 139 | 106 123 128 120 120 124 162 218 Slowest Speed 220 | 120 150 150 120 122 125 220 220 Overloaded Moves . | . . . . . . . . Propulsion Burnouts . | . . . . . . . . Robots Hopped . | . . . . . . . . Cave-ins Triggered . | . . . . . . . . Exploration Rate (%) 40 | 3 35 44 65 65 14 86 8 Regions Visited 7 Branch Regions 1 Pre-discovered Areas 2 | . 1 . . 1 . . . Known Exits Taken 2 | . . . . 1 1 . . Unknown Exits Taken 4 | 1 1 1 1 . . . . Scrap Searched 1 | . . . 1 . . . . Spaces Dug . | . . . . . . . . Terrain Destroyed 177 | . . . . 78 . 96 3 Melee . | . . . . . . . . Projectile 63 | . . . . 52 . 8 3 AOE 114 | . . . . 26 . 88 . Actions | -11 -10 -9 -9 -8 -7 -7 -6 --------- Run | Scr Mat Mat Min Mat Fac Gar Fac Total 6101 | 47 295 1109 453 1543 795 948 911 Wait 1027 | . 9 248 46 190 63 57 414 Move 4484 | 36 244 724 396 1200 681 729 474 Hop . | . . . . . . . . Pick Up 43 | 5 6 7 1 9 5 7 3 Fast Attach 56 | 5 3 11 1 7 14 12 3 Attach 22 | 1 2 6 . 6 1 2 4 Detach 8 | . . 2 . 2 1 2 1 Swap 59 | . 6 8 . 13 3 29 . Drop 78 | . 9 10 2 17 17 18 5 Fire 299 | . 16 80 6 99 9 82 7 Melee 15 | . . 13 1 . 1 . . Ram . | . . . . . . . . Kick . | . . . . . . . . Crush . | . . . . . . . . Escape Stasis 10 | . . . . . . 10 . Rewire . | . . . . . . . . Trap . | . . . . . . . . Miscellaneous . | . . . . . . . . Route ------- -11/Scrapyard -10/Materials -9/Materials (discovered 2 exits: *Mat / *Min) -9/Mines -8/Materials -7/Factory (discovered 3 exits: *Fac / *Low / Gar) -7/Garrison (discovered 3 exits: *Fac x3) -6/Factory History --------- Turn | Location | Event 5 | -11/Scrapyard | Discovered new exit (range 15) 53 | -11/Scrapyard | Entered Materials 337 | -10/Materials | Build established: Mutant 363 | -10/Materials | Discovered new exit (range 11) 433 | -10/Materials | Entered another Materials area 433 | -9/Materials | Evolved 2 slots: Propulsion x1, Utility x1 728 | -9/Materials | Discovered new exit (range 4) 1146 | -9/Materials | Repaired Aluminum Leg 1180 | -9/Materials | Repaired Hrd. Light Armor Plating 1207 | -9/Materials | Repaired Aluminum Leg 1628 | -9/Materials | Repaired Aluminum Leg 1680 | -9/Materials | Repaired Adv. Beam Cannon 1787 | -9/Materials | Discovered new exit (range 7) 1885 | -9/Materials | Entered Mines 1927 | -9/Mines | Received a Mining Laser from a helpful Derelict 1997 | -9/Mines | Met a Derelict shopkeep closing up shop 2016 | -9/Mines | Discovered new exit (range 18) 2103 | -9/Mines | Learned Materials terminal intel 2425 | -9/Mines | Entered Materials 2425 | -8/Materials | Accompanied by 2 allies 2425 | -8/Materials | Evolved 2 slots: Propulsion x1, Utility x1 2426 | -8/Materials | Loaded intel: 12 terminal locations 2430 | -8/Materials | Led the pair of lost Derelicts to an unsafe place 2772 | -8/Materials | Garrison activated, responded to threat 2898 | -8/Materials | Discovered new exit (range 16) 2931 | -8/Materials | Identified exit to Factory 3405 | -8/Materials | Garrison activated, responded to threat 3537 | -8/Materials | Repaired Carbon-fiber Leg 4361 | -8/Materials | Garrison activated, responded to threat 4396 | -8/Materials | Entered Factory 4396 | -7/Factory | Evolved 2 slots: Power x1, Utility x1 4516 | -7/Factory | Discovered new exit (range 6) 4529 | -7/Factory | Discovered new exit (range 15) 4557 | -7/Factory | Identified exit to Lower Caves 4651 | -7/Factory | Identified exit to Factory 4898 | -7/Factory | Build established: Scavenger-Mutant 5375 | -7/Factory | Identified exit to Garrison 5379 | -7/Factory | Entered Garrison 5436 | -7/Garrison | Triggered checkpoint 5454 | -7/Garrison | Garrison Relay disabled 5518 | -7/Garrison | Phase Generator disabled 5611 | -7/Garrison | Build established: Mutant 5640 | -7/Garrison | Triggered checkpoint 5716 | -7/Garrison | Lost 4 parts (3n1w) 5980 | -7/Garrison | Build established: Scavenger-Mutant 6064 | -7/Garrison | Triggered checkpoint 6102 | -7/Garrison | Garrison Relay disabled 6173 | -7/Garrison | Discovered exit to Factory (range 15) 6441 | -7/Garrison | Discovered exit to Factory (range 11) 6556 | -7/Garrison | Triggered checkpoint 6604 | -7/Garrison | Garrison Relay disabled 6692 | -7/Garrison | Triggered checkpoint 6784 | -7/Garrison | Discovered exit to Factory (range 13) 6879 | -7/Garrison | Lost 3 parts (3n) 6902 | -7/Garrison | Installed Relay Interface Framework 6956 | -7/Garrison | Entered Factory 6956 | -6/Factory | Evolved 2 slots: Utility x1, Weapon x1 7261 | -6/Factory | Build established: Tank 8443 | -6/Factory | Self-destructed Last Messages --------------- 07894_ U-05 Engineer builds a Wall. 07906_ R-10 Processor collects Target Analyzer. 07910_ R-10 Processor collects Gravmag System. 07965_ Acquired EM Shield. 08099_ Y-54 Guardian destroyed. 08108_ U-05 Engineer builds a Wall. 08122_ Dropped Imp. Deuterium Engine. 08123_ Acquired Fission Core. 08140_ Acquired 25 matter. 08197_ K-01 Serf collects debris. 08366_ Dropped Imp. Cooling System. 08366_ Acquired Unknown Storage. 08366_ Identified Lrg. Matter Pod. 08368_ Dropped Lrg. Matter Pod. 08370_ Acquired Imp. Cooling System. 08372_ K-01 Serf cleans the Fusion Modulator. 08435_ K-01 Serf destroyed. 08437_ Slug penetrates R-10 Processor. 08438_ Overheating: Energy bleed (-75). 08441_ Penetrated by Slug. Map ----- +----------------------------------------------------+ | # """ !! #???????# #"" #??????? | | # """ #???????# # [ #??????? | | + """ #???????# ##############??????? | | " # #???????# ###############?????? | | " #! """ """ #???????# # #?????? | | " # """ """ #???????# # #?????? | | # """ """ #???????# # #?????? | | ### #???????# # #?????? | | ??# """ """ #???????# # #?????? | | ??# """ """ #???????# / #?????? | | ??# """ """ #???????# #######+###+###?????? | | ??# ? #???????# # #??????? | | ??# """ "?" #???????# # #??????? | | ??# "?" "?" #???????# # ! = #??????? | | ??# "?" "?? #???????# # ! #??????? | | ?? ?? ??? #???????# # """ """ #??????? | | ?? "?? ??? +???????# # """ """ +??????? | | ?? "?? ??????????????# + """ """ #??????? | | ?? ??? ""????????????# # #??????? | | ?????????? ??????????# # """ """ #??????? | | ??????????"" ?????????##### # """ """ #??????? | | ??????????"" ########????# # """ """ #??????? | | ???????" """ #????# +w #??????? | | ??????? gg g #????# ########/#####??????? | | ?????? g !##### ######## #??????????? | | ?????? @ u u R + ! !!?????? | | ?????? ############### #??????????? | | ??????????####### #??????????????????????????? | | ????????????????# #??????????????????????????? | | ????????????????# #??????????????????????????? | | ????????????????# #??????????????????????????? | | ????????????????# #??????????????????????????? | | ????????????????# #??????????????????????????? | | ???????????????? #??????????????????????????? | | ???????????????" #??????????????????????????? | | ?????????????? ???????????????????????????? | | ??????????????"" ! ???????????????????????????? | | ??????????????"" ???????????????????????????? | | ???????????????" ???????????????????????????? | | ??????????????? ???????????????????????????? | | ????????????????? ???????????????????????????? | | ??????????????????? ##???????????????????????????? | | ?????????????????????????????????????????????????? | | ?????????????????????????????????????????????????? | | ?????????????????????????????????????????????????? | | ?????????????????????????????????????????????????? | | ?????????????????????????????????????????????????? | | ?????????????????????????????????????????????????? | | ?????????????????????????????????????????????????? | | ?????????????????????????????????????????????????? | +----------------------------------------------------+ Best States ------------- Heat Dissipation 64 Coolant Potential 65 Energy Generation 29 Energy Capacity 500 Matter Stores 300 Matter Capacity 300 Sight Range 22 Robot Scan Range 20 Terrain Scan Density 10 Base Temperature (-) 100 Armor Coverage 450 Resistance: TH 20 Evasion (%) 40 Target Analysis 5 Recoil Reduction 4 Item Schematics ----------------- Cld. Ion Engine | -9/Materials | Scanalyzed Hrd. Light Armor Plating | -9/Materials | Scanalyzed Adv. Beam Cannon | -9/Materials | Scanalyzed Aluminum Leg | -9/Materials | Scanalyzed Hyp. Gauss Rifle | -7/Factory | Hacked Robot Schematics ------------------ None Fabricated ------------ Nothing Alien Tech Used ----------------- None Achievements -------------- Watch This! Challenges ------------ None Game ------ Seed RecyclingGhostWarhead Manual? 0 Play Time 01:16:06 Cumulative 34.7 hours Start 2020.07.06 @ 22:07:48 End 2020.07.06 @ 23:28:34 Sessions 1 Manual Loads 0 Difficulty Rogue Special Mode None Game No. 45 Rogue 45 Adventurer 0 Explorer 0 Win Type - Total 0 Types 0/0/0/0/0/0/0 Lore% 30 Gallery% 36 Achievement% 33 Wizard Run 0 Options --------- ASCII 0 Keyboard 0 Movement Numpad Keybinds 0 Fullscreen 2 Font 16/Terminus Map View 76x50 Tactical HUD 1 Map Filters NONE Filters NONE Steam 1 RUN: 0cb78841-1561-4502-95bf-916a2d395bc7